bitfinex/quotes_ETHUSD_20240828
["timestamp","ask_amount","ask_price","bid_price","bid_amount"]
[1724808206585,4.09081,2444.5,2443.7,3.4102]
[1724808206752,2.3344,2444.6,2443.8,0.08182728]
[1724808206753,0.07358502,2444.2,2443.8,0.08182728]
[1724808206942,2.3344,2444.6,2443.8,0.08182728]
[1724808206943,4.09095,2444.5,2443.8,0.08182728]
[1724808207137,4.09095,2444.5,2443.8,0.85005545]
[1724808207138,0.07358502,2444.1,2443.8,0.85005545]
[1724808207441,0.07358502,2444.0,2443.8,0.85005545]
[1724808207641,8.18186,2444.5,2443.8,0.85005545]
[1724808207944,8.18186,2444.5,2443.9,0.42602555]
[1724808207945,0.07358502,2444.4,2443.9,0.42602555]
[1724808208566,0.07358502,2444.4,2444.0,0.08182887]
[1724808208767,4.09057,2444.7,2444.0,0.08182887]
[1724808208768,4.09057,2444.7,2444.1,2.2814]
[1724808208983,0.07343052,2444.3,2444.2,0.0818182]
[1724808209274,0.07343052,2444.3,2444.1,2.2814]
[1724808209275,0.07343052,2444.3,2444.1,2.36321833]
[1724808209517,6.38145,2444.9,2444.2,0.23632183]
[1724808209660,4.09031,2444.8,2444.1,2.36321833]
[1724808209861,6.38145,2444.9,2444.1,2.36321833]
[1724808210072,4.09025,2444.9,2444.1,2.36321833]
[1724808210467,4.09024,2444.9,2444.1,2.36321833]
[1724808210694,4.09024,2444.9,2444.2,0.23632183]
[1724808210993,8.1805,2444.9,2444.3,0.08181412]
[1724808211198,8.18048,2444.9,2444.3,0.08181412]
[1724808211496,4.09007,2445.0,2444.3,0.08181369]
[1724808211802,4.09007,2445.0,2444.2,0.23632183]
[1724808212175,4.09014,2444.9,2444.2,0.23632183]
[1724808214293,8.18037,2444.9,2444.2,0.23632183]
[1724808214514,8.18037,2444.9,2444.1,2.2814]
[1724808214515,0.840949,2444.9,2444.1,2.2814]
[1724808214707,4.09062,2444.7,2444.2,0.08181491]
[1724808215058,4.09067,2444.6,2444.1,2.2814]
[1724808215295,8.18143,2444.6,2444.1,2.2814]
[1724808215506,4.09067,2444.6,2444.1,2.2814]
[1724808215802,8.18142,2444.6,2444.1,2.2814]
[1724808215966,4.09067,2444.6,2444.1,2.2814]
[1724808216669,4.09085,2444.5,2443.9,0.42602555]
[1724808216876,4.09099,2444.4,2443.9,3.42602555]
[1724808217264,4.499737,2444.6,2443.8,3.12222817]
[1724808217265,4.09151,2444.1,2443.8,2.354]
[1724808217468,4.09151,2444.1,2443.7,7.36900909]
[1724808218003,6.55275,2444.3,2443.7,8.14693]
[1724808218214,4.09124,2444.3,2443.8,0.08183132]
[1724808218508,4.09124,2444.3,2443.8,2.354]
[1724808218664,8.18247,2444.3,2443.8,3.404093]
[1724808218864,4.09176,2444.0,2443.7,7.36900909]
[1724808219813,4.09149,2444.1,2443.7,7.36900909]
[1724808220381,4.09166,2444.0,2443.5,2.7642]
[1724808220680,0.89145828,2444.0,2443.4,7.36900909]
[1724808220883,4.09226,2443.7,2443.4,7.36900909]
[1724808221067,0.07261929,2443.6,2443.4,7.36900909]
[1724808221273,4.09249,2443.5,2443.0,7.36900909]
[1724808221466,0.07260641,2443.4,2443.0,9.34791]
[1724808221671,4.09283,2443.3,2443.0,0.4102]
[1724808222020,0.07224572,2443.2,2442.8,12.42]
[1724808222170,0.07224572,2443.2,2442.9,2.06075915]
[1724808222372,4.09261,2443.5,2442.9,2.06075915]
[1724808222869,0.07224572,2443.4,2442.9,2.06075915]
[1724808223496,4.09291,2443.3,2442.8,12.42]
[1724808223674,4.09277,2443.4,2442.8,12.42]
[1724808223875,0.07224572,2443.3,2442.8,12.42]
[1724808224075,4.16512572,2443.3,2442.8,14.43992091]
[1724808225355,2.284,2443.2,2442.2,2.4881]
[1724808225652,4.09396,2442.7,2442.1,7.36900909]
[1724808225833,4.09396,2442.7,2442.1,8.12324713]
[1724808226042,0.06956582,2442.6,2442.1,8.12324713]
[1724808226336,4.09396,2442.7,2442.1,8.12324713]
[1724808226535,4.09366,2442.8,2442.1,8.12324713]
[1724808226848,4.09366,2442.8,2442.2,0.08188434]
[1724808227059,0.0690888,2442.7,2442.2,0.94341749]
[1724808227918,4.09366,2442.8,2442.2,0.94341749]
[1724808228342,0.0690888,2442.7,2442.2,0.94341749]
[1724808229659,4.0935,2442.9,2442.2,0.94341749]
[1724808229962,0.0690888,2442.8,2442.2,0.94341749]
[1724808230162,0.0690888,2442.8,2442.3,0.98855076]
[1724808230670,4.09338,2443.0,2442.3,0.98855076]
[1724808230858,4.09357,2442.9,2442.3,0.98855076]
[1724808231075,0.06889538,2442.8,2442.2,0.08188125]
[1724808231225,4.09425,2442.5,2441.9,0.4102]
[1724808231433,10.63475,2442.7,2441.9,0.49209231]
[1724808231658,10.63475,2442.7,2442.0,0.77792091]
[1724808231659,6.54082,2442.7,2442.0,0.77792091]
[1724808231988,0.06893407,2442.6,2442.1,0.08188828]
[1724808234103,0.06893407,2442.6,2442.2,2.352]
[1724808234281,4.0936,2442.9,2442.3,0.32526867]
[1724808234593,0.06893407,2442.8,2442.3,0.08187984]
[1724808234757,4.16267407,2442.8,2442.3,0.08187984]
[1724808235855,4.16267407,2442.8,2442.2,0.08187987]
[1724808236092,4.16267407,2442.8,2442.2,0.90476086]
[1724808236302,4.16267407,2442.8,2442.3,0.08187983]
[1724808237012,4.16267407,2442.8,2442.3,0.08187993]
[1724808238014,4.16267407,2442.8,2442.2,0.90476083]
[1724808238015,4.09386,2442.7,2442.2,0.90476083]
[1724808238171,4.16203335,2442.7,2442.2,0.90476083]
[1724808238694,4.094,2442.6,2442.2,0.82288099]
[1724808238895,0.06816045,2442.5,2442.1,7.36900909]
[1724808239284,4.09434,2442.4,2442.1,7.36900909]
[1724808239488,4.0945,2442.3,2442.1,7.36900909]
[1724808239687,0.06809597,2442.2,2442.1,7.36900909]
[1724808239887,4.09434,2442.4,2441.7,7.77920909]
[1724808240116,0.06809597,2442.3,2441.8,0.57086]
[1724808240279,4.16267597,2442.3,2441.8,0.65275831]
[1724808240479,0.06809597,2442.3,2441.9,0.84319674]
[1724808240815,4.09416,2442.5,2442.0,0.08188911]
[1724808241015,0.06808308,2442.2,2441.8,0.6527502]
[1724808241175,4.09474,2442.2,2441.7,7.77920909]
[1724808241381,0.06808308,2442.1,2441.7,7.77920909]
[1724808241893,4.16292308,2442.1,2441.7,7.77920909]
[1724808242913,0.06808308,2442.1,2441.7,9.38893]
[1724808243111,0.06808308,2442.1,2441.8,0.08189825]
[1724808243315,0.06774773,2442.0,2441.8,0.08189825]
[1724808243519,0.06774773,2442.0,2441.7,9.38893]
[1724808243813,8.18913,2442.3,2441.7,9.38893]
[1724808243814,0.06774773,2441.9,2441.7,9.38893]
[1724808243989,4.09453,2442.3,2441.8,0.0818984]
[1724808244194,2.3469,2442.6,2441.8,2.4019984]
[1724808244398,4.09413,2442.6,2441.8,2.4019984]
[1724808244716,4.09387,2442.7,2441.9,5.57103955]
[1724808244877,4.09387,2442.7,2442.0,0.08188245]
[1724808245081,4.09387,2442.7,2442.0,0.92020465]
[1724808245891,4.09367,2442.8,2442.0,0.92020465]
[1724808246216,4.09359,2442.9,2442.0,0.92020465]
[1724808246217,4.09384,2442.7,2442.0,0.92020465]
[1724808247060,8.18775,2442.7,2442.0,0.92020465]
[1724808247239,4.094,2442.6,2442.1,0.69014442]
[1724808247441,4.094,2442.6,2442.1,0.77202741]
[1724808247963,8.18777,2442.7,2442.1,0.77202741]
[1724808248761,4.09384,2442.7,2442.1,0.77202741]
[1724808248965,4.09427,2442.5,2441.9,0.4102]
[1724808249167,4.09427,2442.5,2441.9,3.4102]
[1724808249464,4.09418,2442.5,2442.0,0.08188737]
[1724808249662,6.5205,2442.6,2442.0,1.08089506]
[1724808249663,4.0941,2442.6,2442.0,1.08089506]
[1724808249960,4.0941,2442.6,2442.1,4.17788949]
[1724808250125,8.18821,2442.6,2442.1,4.17788949]
[1724808250327,4.0941,2442.6,2442.1,4.17788949]
[1724808250524,0.06812176,2442.5,2442.2,0.08188818]
[1724808250775,4.09342,2443.0,2442.4,4.17788949]
[1724808250945,4.09349,2442.9,2442.5,0.08187421]
[1724808251159,4.09396,2442.7,2442.2,2.42007861]
[1724808251468,8.18794,2442.7,2442.2,0.08187861]
[1724808251670,4.09396,2442.7,2442.2,0.08187861]
[1724808252084,8.18726,2442.9,2442.2,0.08187861]
[1724808252363,8.18726,2442.9,2442.2,0.60095402]
[1724808252540,4.09371,2442.8,2442.2,0.60095402]
[1724808252936,4.09383,2442.7,2442.2,0.60095402]
[1724808253273,4.09383,2442.7,2442.2,0.08187861]
[1724808254241,8.18776,2442.7,2442.2,0.08187861]
[1724808254446,8.18774,2442.7,2442.2,0.08187861]
[1724808254667,4.09383,2442.7,2442.2,0.08187861]
[1724808255091,4.09368,2442.8,2442.2,0.08187861]
[1724808255391,4.09368,2442.8,2442.2,0.60095402]
[1724808255949,4.09368,2442.8,2442.3,0.64082759]
[1724808256175,4.09368,2442.8,2442.2,0.60095402]
[1724808256396,8.18743,2442.8,2442.3,0.64082904]
[1724808256577,0.51820346,2442.9,2442.0,7.36900909]
[1724808256578,4.09412,2442.6,2442.0,7.36900909]
[1724808256886,4.09428,2442.5,2442.1,0.64088542]
[1724808257092,4.09428,2442.5,2442.0,7.36900909]
[1724808257295,4.09428,2442.5,2442.1,0.64087899]
[1724808257605,4.094,2442.6,2442.0,10.34053895]
[1724808257759,4.094,2442.6,2442.1,0.6408863]
[1724808258085,6.34813,2442.7,2442.0,7.36900909]
[1724808258086,6.34824,2442.7,2442.0,7.36900909]
[1724808258318,5.138523,2442.5,2442.0,7.36900909]
[1724808258468,5.138523,2442.5,2442.0,7.45090066]
[1724808259468,4.09402,2442.6,2442.0,7.45090066]
[1724808259796,4.09418,2442.5,2442.0,7.45090066]
[1724808260403,8.18843,2442.5,2442.0,7.45090066]
[1724808260570,4.09418,2442.5,2442.0,7.45090066]
[1724808260889,4.09418,2442.5,2442.0,7.36900909]
[1724808261198,4.09401,2442.6,2442.0,7.92431534]
[1724808261551,4.09419,2442.5,2442.1,0.6408822]
[1724808261779,4.09419,2442.5,2442.0,7.84242382]
[1724808263183,4.09368,2442.8,2442.1,1.14097379]
[1724808263378,4.09385,2442.7,2442.2,0.64090173]
[1724808263578,4.09385,2442.7,2442.2,1.38021888]
[1724808263992,4.09418,2442.5,2442.1,1.05908238]
[1724808264298,4.09418,2442.5,2442.0,7.36900909]
[1724808264456,8.18843,2442.5,2442.1,0.64087735]
[1724808264656,0.06776062,2442.4,2442.0,7.36900909]
[1724808264890,0.06776062,2442.4,2442.1,1.8744892]
[1724808265090,0.06776062,2442.4,2442.1,1.23359568]
[1724808266080,0.06776062,2442.4,2442.0,7.36900909]
[1724808266510,4.16212062,2442.4,2442.0,7.36900909]
[1724808267169,4.09544,2441.8,2441.4,0.8520364]
[1724808267509,4.09643,2441.2,2441.0,0.8520364]
[1724808267711,4.09643,2441.2,2440.6,8.22104549]
[1724808267712,4.09668,2441.0,2440.6,8.22104549]
[1724808267872,4.09643,2441.2,2440.7,4.20428693]
[1724808268068,0.06745102,2440.9,2440.6,9.81900701]
[1724808268298,4.09643,2441.2,2440.6,11.95694329]
[1724808268479,4.09643,2441.2,2440.7,2.74717028]
[1724808268807,0.06745102,2441.1,2440.7,1.32191797]
[1724808270414,0.06745102,2441.1,2440.5,0.4102]
[1724808270618,4.09684,2441.0,2440.5,0.4102]
[1724808270788,4.16181349,2441.0,2440.5,0.4102]
[1724808271374,4.16181349,2441.0,2440.4,0.4102]
[1724808271575,0.06497349,2441.0,2440.5,5.07761647]
[1724808271812,2.44,2441.3,2440.6,0.08193705]
[1724808272013,0.06479275,2440.9,2440.8,4.17788949]
[1724808272180,2.399,2441.6,2440.8,4.17788949]
[1724808272181,6.4947,2441.6,2440.8,4.17788949]
[1724808272384,4.09582,2441.6,2440.9,0.08192555]
[1724808272710,4.09585,2441.5,2440.9,1.53511796]
[1724808272920,9.23528,2441.7,2440.9,1.53511796]
[1724808273069,9.23528,2441.7,2441.0,0.82059075]
[1724808273669,4.09569,2441.6,2441.0,0.82059075]
[1724808274508,6.49427,2441.9,2441.2,4.17788949]
[1724808274709,6.49427,2441.9,2441.3,0.42598151]
[1724808275007,6.49427,2441.9,2441.2,4.17788949]
[1724808275184,4.09516,2442.0,2441.3,2.46601718]
[1724808275384,4.09478,2442.2,2441.3,2.46601718]
[1724808275591,4.09501,2442.0,2441.4,0.66439067]
[1724808275982,4.09476,2442.2,2441.5,0.0819103]
[1724808276178,4.09498,2442.1,2441.5,0.0819103]
[1724808276599,4.09502,2442.0,2441.5,0.0819103]
[1724808277315,4.09543,2441.8,2441.3,2.3841]
[1724808277482,4.09592,2441.5,2441.1,7.77920909]
[1724808277873,4.09605,2441.4,2440.9,1.45319241]
[1724808278110,4.09605,2441.4,2440.6,13.89999858]
[1724808278308,4.09605,2441.4,2440.8,4.17788949]
[1724808279317,4.09578,2441.6,2440.8,4.17788949]
[1724808279474,8.19155,2441.6,2440.8,4.17788949]
[1724808279670,4.0955,2441.7,2441.0,4.17788949]
[1724808279906,4.0955,2441.7,2441.0,4.25981005]
[1724808280506,0.0651413,2441.6,2441.0,4.25981005]
[1724808281036,4.1608513,2441.6,2441.0,4.17788949]
[1724808281236,0.0651413,2441.6,2441.0,4.87276733]
[1724808281436,6.36736,2441.8,2441.0,4.87276733]
[1724808281611,0.0651413,2441.5,2441.1,0.76436563]
[1724808281814,4.09562,2441.7,2441.1,0.76436563]
[1724808282134,4.1612313,2441.4,2440.9,2.3531]
[1724808282311,4.1612313,2441.4,2440.8,4.17788949]
[1724808282312,4.09609,2441.4,2440.8,4.17788949]
[1724808282496,4.09618,2441.3,2440.7,0.4102]
[1724808282701,4.16164398,2441.3,2440.8,1.43352986]
[1724808283101,4.0964,2441.2,2440.8,1.43352986]
[1724808283303,0.06533491,2441.2,2440.8,1.43352986]
[1724808283547,4.09617,2441.4,2440.8,1.43352986]
[1724808284215,0.06533491,2441.3,2440.8,1.43352986]
[1724808284415,0.06533491,2441.3,2440.9,0.48437299]
[1724808284680,0.06533491,2441.3,2440.7,0.4102]
[1724808284844,0.06533491,2441.3,2440.4,0.4102]
[1724808284845,4.0966,2441.1,2440.4,0.4102]
[1724808285138,4.0966,2441.1,2440.4,0.4921438]
[1724808285342,4.0966,2441.1,2440.4,1.42808556]
[1724808285709,4.16189873,2441.0,2440.4,0.49214379]
[1724808285929,4.16189873,2441.0,2440.4,0.49214513]
[1724808286239,4.09685,2440.9,2440.3,2.4354]
[1724808286416,4.09712,2440.8,2440.2,7.36900909]
[1724808286751,4.16233873,2440.8,2440.2,7.36900909]
[1724808287115,4.16232873,2440.8,2440.2,7.36900909]
[1724808287627,4.09722,2440.7,2440.2,7.36900909]
[1724808287950,4.09753,2440.5,2439.8,0.4102]
[1724808288168,4.09769,2440.4,2439.8,0.4102]
[1724808288330,4.09753,2440.5,2439.8,0.4102]
[1724808288525,4.09753,2440.5,2439.9,1.42353986]
[1724808288720,0.06463771,2440.4,2439.8,0.4102]
[1724808289048,0.06463771,2440.4,2439.8,0.49216362]
[1724808289254,0.06463771,2440.4,2439.9,4.17788949]
[1724808289424,6.49342,2441.0,2440.2,2.4818]
[1724808289625,6.49342,2441.0,2440.3,4.50801594]
[1724808289826,0.06423732,2440.9,2440.3,4.50801594]
[1724808290355,0.06423732,2440.9,2440.7,4.17788949]
[1724808290720,4.09623,2441.3,2440.7,4.17788949]
[1724808290920,0.06423732,2440.8,2440.7,4.59567844]
[1724808291442,6.49239,2441.6,2440.7,4.59567844]
[1724808291633,0.06423732,2440.8,2440.7,4.17788949]
[1724808291827,4.09603,2441.4,2440.7,4.17788949]
[1724808292028,0.06423732,2440.8,2440.7,4.17788949]
[1724808292240,4.09618,2441.3,2440.7,4.17788949]
[1724808292446,0.06423732,2440.8,2440.7,4.17788949]
[1724808292752,4.09642,2441.2,2440.6,0.08193337]
[1724808292960,0.06423732,2440.8,2440.6,0.08193337]
[1724808293156,4.09618,2441.3,2440.6,1.09711566]
[1724808293335,4.09595,2441.5,2440.6,1.09711566]
[1724808293336,0.06423732,2440.7,2440.6,1.09711566]
[1724808293675,8.19195,2441.5,2440.6,5.68520515]
[1724808293874,8.19121,2441.7,2440.9,4.17788949]
[1724808294166,0.06225477,2441.4,2441.0,0.45880895]
[1724808294343,4.09585,2441.5,2441.0,0.45880895]
[1724808294542,5.6966,2441.9,2441.0,0.08192963]
[1724808294543,0.06225477,2441.3,2441.0,0.08192963]
[1724808294742,13.88709,2441.9,2441.1,4.17788949]
[1724808294945,0.06225477,2441.2,2441.1,6.45328949]
[1724808295147,4.09534,2441.8,2441.1,6.45328949]
[1724808295346,0.0617126,2441.2,2441.1,6.45328949]
[1724808295667,4.09571,2441.6,2441.1,1.38222986]
[1724808295830,0.0617126,2441.2,2440.9,0.08192763]
[1724808296037,4.09586,2441.5,2440.9,0.08192763]
[1724808296238,4.09571,2441.6,2440.9,4.25981712]
[1724808296568,4.09585,2441.5,2441.0,0.75865892]
[1724808296772,0.0617126,2441.5,2441.0,0.75865892]
[1724808297346,4.1576126,2441.5,2441.0,0.75865892]
[1724808298262,4.09605,2441.4,2440.9,4.17788949]
[1724808298582,4.09605,2441.4,2440.8,3.32677136]
[1724808298583,4.09619,2441.3,2440.8,1.05137136]
[1724808298874,0.06250036,2441.3,2440.9,0.08192838]
[1724808299274,4.0959,2441.5,2440.9,0.08192838]
[1724808299485,0.06242289,2441.2,2440.9,0.08192838]
[1724808299813,0.06242289,2441.1,2440.8,3.01354522]
[1724808300116,4.0959,2441.5,2440.9,2.28025543]
[1724808300309,0.06242289,2441.0,2440.9,2.36218374]
[1724808300607,0.06242289,2441.0,2440.9,2.28025543]
[1724808300808,0.06242289,2441.0,2440.8,0.4102]
[1724808300978,0.06242289,2440.9,2440.8,0.4102]
[1724808301162,4.09632,2441.3,2440.8,0.4102]
[1724808301368,0.06242289,2441.2,2440.8,0.4102]
[1724808301606,8.19196,2441.5,2440.8,1.78936507]
[1724808302010,0.06242289,2441.4,2440.8,1.78936507]
[1724808302464,0.06242289,2441.4,2440.8,1.37916507]
[1724808303569,4.15851289,2441.4,2440.8,1.37916507]
[1724808303770,4.09618,2441.3,2440.7,8.42041774]
[1724808304018,8.19245,2441.3,2440.7,8.42041932]
[1724808304309,0.06242289,2441.2,2440.7,8.42042288]
[1724808304464,0.06242289,2441.2,2440.7,9.36999856]
[1724808304465,4.15877289,2441.2,2440.7,9.36999856]
[1724808304665,0.06242289,2441.2,2440.7,9.36999856]
[1724808304904,0.06242289,2441.2,2440.8,0.08193364]
[1724808305263,4.09618,2441.3,2440.8,0.08193364]
[1724808305467,0.06242289,2441.1,2440.7,9.36999856]
[1724808305761,8.19247,2441.3,2440.7,9.36999856]
[1724808305762,0.06242289,2441.0,2440.8,1.45630703]
[1724808305961,4.09635,2441.2,2440.7,7.77920909]
[1724808306166,0.06242289,2441.1,2440.7,8.42044829]
[1724808306366,0.06242289,2441.1,2440.7,7.36900909]
[1724808306602,0.06242289,2441.1,2440.7,0.64123288]
[1724808306899,0.06242289,2441.1,2440.6,5.68520818]
[1724808307099,0.06242289,2441.1,2440.7,0.79796082]
[1724808307323,4.15895289,2441.1,2440.6,5.68520818]
[1724808307526,4.15895289,2441.1,2440.6,1.42538229]
[1724808307816,4.15895289,2441.1,2440.6,1.50731904]
[1724808307817,0.06242289,2441.1,2440.6,1.50731904]
[1724808307986,0.06242289,2441.1,2440.7,0.3801719]
[1724808308780,4.15893289,2441.1,2440.7,0.3801719]
[1724808309087,4.15893289,2441.1,2440.7,1.02142129]
[1724808309306,4.15893289,2441.1,2440.7,0.3801719]
[1724808310382,0.06242289,2441.1,2440.7,0.3801719]
[1724808312116,0.06242289,2441.1,2440.7,4.55806139]
[1724808312300,0.06242289,2441.1,2440.8,2.88672384]
[1724808312503,4.09624,2441.3,2440.8,0.82033064]
[1724808312707,4.09552,2441.7,2441.0,6.51238949]
[1724808313019,4.09552,2441.7,2441.1,2.14803479]
[1724808313180,4.09575,2441.6,2441.1,0.08191528]
[1724808313386,0.06212588,2441.5,2441.1,1.33000031]
[1724808313918,0.06212588,2441.5,2441.1,1.24808503]
[1724808314142,0.06212588,2441.5,2441.0,4.17788949]
[1724808314281,4.09646,2441.2,2440.9,7.36900909]
[1724808314618,0.06229372,2441.1,2440.8,0.82033064]
[1724808314837,4.09619,2441.3,2440.9,1.42516441]
[1724808315034,4.09619,2441.3,2440.8,0.82033064]
[1724808315035,0.06229372,2441.2,2440.8,0.82033064]
[1724808315234,6.48722,2441.4,2440.8,0.82033064]
[1724808315235,6.48721,2441.4,2440.9,2.04820016]
[1724808315440,4.0958,2441.6,2440.9,2.04820016]
[1724808315441,0.06229372,2441.3,2440.9,0.62304284]
[1724808315608,4.09601,2441.4,2440.9,0.62304284]
[1724808315943,0.06229372,2441.3,2440.9,0.62304284]
[1724808316442,0.06229372,2441.3,2441.0,3.5625806]
[1724808316655,2.3109,2442.0,2441.1,4.40566749]
[1724808316860,2.3109,2442.3,2441.8,4.17788949]
[1724808317136,8.18881,2442.4,2441.9,0.41778895]
[1724808317344,4.09433,2442.4,2441.9,0.41778895]
[1724808317632,4.09433,2442.4,2441.8,0.08189756]
[1724808317833,4.09458,2442.3,2441.7,2.4769]
[1724808318041,4.09433,2442.4,2441.8,0.08189759]
[1724808319128,6.405,2442.6,2441.7,3.11784121]
[1724808319129,6.48878949,2442.6,2441.7,3.11784121]
[1724808319307,4.09485,2442.1,2441.4,0.64101166]
[1724808319503,4.09462,2442.3,2441.5,4.25979587]
[1724808319504,2.3764,2442.2,2441.5,4.25979587]
[1724808319812,2.3764,2442.2,2441.8,4.17788949]
[1724808320014,4.0942,2442.5,2441.8,4.17788949]
[1724808320015,4.09444,2442.4,2441.9,0.08189355]
[1724808320201,4.09475,2442.2,2441.7,0.08189572]
[1724808320397,4.09475,2442.2,2441.7,0.91173893]
[1724808320603,4.09444,2442.4,2441.7,0.91173893]
[1724808320804,4.09409,2442.6,2441.7,0.91173893]
[1724808321111,4.09409,2442.6,2441.9,4.17788949]
[1724808321316,8.18818,2442.6,2441.9,4.25978028]
[1724808321633,4.09409,2442.6,2441.9,4.25978028]
[1724808322671,4.09409,2442.6,2441.9,0.08189079]
[1724808322838,4.09476,2442.2,2441.8,1.06243054]
[1724808323171,4.09488,2442.1,2441.6,0.08189902]
[1724808323635,4.09502,2442.0,2441.5,4.58808949]
[1724808323840,4.09546,2441.8,2441.4,0.64101166]
[1724808324357,4.09567,2441.6,2441.4,0.64101166]
[1724808324864,4.09567,2441.6,2441.1,0.50376598]
[1724808325527,0.06379106,2441.5,2441.1,0.50376598]
[1724808326047,4.15967106,2441.5,2441.1,0.50376598]
[1724808326926,4.15967106,2441.5,2440.9,4.17788949]
[1724808326927,4.0962,2441.3,2440.7,2.2864]
[1724808327163,4.09634,2441.2,2440.7,0.08193031]
[1724808327359,4.09596,2441.5,2440.7,0.73008918]
[1724808327563,0.06314583,2441.1,2440.7,0.73008918]
[1724808327765,4.09627,2441.3,2440.7,0.73008918]
[1724808327928,0.06314583,2441.0,2440.8,0.53181787]
[1724808328124,4.09648,2441.2,2440.8,0.53181787]
[1724808328461,4.09627,2441.3,2440.7,0.64815887]
[1724808328666,4.15953583,2441.2,2440.7,0.64815887]
[1724808328871,4.15953583,2441.2,2440.6,0.49213635]
[1724808329072,0.06314583,2441.2,2440.7,2.2864]
[1724808329378,8.19151,2441.6,2440.9,2.2864]
[1724808329541,0.06281017,2441.1,2441.0,0.08192486]
[1724808330064,4.09584,2441.5,2441.0,0.08192486]
[1724808330265,0.06281017,2441.1,2441.0,0.34654271]
[1724808330464,8.19177,2441.5,2441.0,0.34654271]
[1724808330760,0.06281017,2441.1,2441.0,0.34654271]
[1724808330966,4.09584,2441.5,2441.0,0.34654271]
[1724808331165,4.0958,2441.6,2441.0,0.34654271]
[1724808331371,0.06281017,2441.4,2441.0,0.34654271]
[1724808331551,8.1918,2441.5,2441.0,0.34654271]
[1724808331726,0.06281017,2441.3,2441.0,0.34654271]
[1724808331930,4.09564,2441.7,2441.0,0.34654271]
[1724808331931,4.09562,2441.7,2441.0,0.34654271]
[1724808332157,0.06281017,2441.2,2441.0,0.34654271]
[1724808332339,4.09534,2441.8,2441.0,0.34654271]
[1724808332735,0.06281017,2441.7,2441.0,0.34654271]
[1724808332932,0.06281017,2441.7,2441.3,2.3786]
[1724808333158,0.06281017,2441.7,2441.4,0.87750031]
[1724808333364,4.09511,2442.0,2441.4,0.87750031]
[1724808333575,0.06281017,2441.6,2441.4,0.87750031]
[1724808333765,4.09492,2442.1,2441.5,0.32561003]
[1724808333972,4.0946,2442.3,2441.6,0.08190083]
[1724808334149,0.42823101,2442.5,2441.6,0.08190083]
[1724808334150,0.06281017,2442.0,2441.6,0.08190083]
[1724808334470,0.06281017,2441.9,2441.7,2.4099]
[1724808334635,0.06281017,2441.9,2441.7,2.90199435]
[1724808334968,8.19023,2442.0,2441.6,0.93280703]
[1724808335173,0.0637008,2441.8,2441.5,0.40751337]
[1724808335471,4.0951,2442.0,2441.5,0.40751337]
[1724808335472,0.06389435,2441.7,2441.5,0.40751337]
[1724808335765,0.06389435,2441.7,2441.6,0.42031095]
[1724808335939,4.0951,2442.0,2441.6,0.42031095]
[1724808336147,0.06389435,2441.7,2441.4,0.7955961]
[1724808336347,4.09544,2441.8,2441.3,7.36900909]
[1724808336750,0.06376532,2441.7,2441.3,7.45092169]
[1724808337059,4.09488,2442.1,2441.5,2.4565]
[1724808337259,4.09519,2441.9,2441.5,2.53840469]
[1724808337488,4.09519,2441.9,2441.5,0.08190469]
[1724808337709,0.06377822,2441.8,2441.5,0.08190469]
[1724808337868,0.06377822,2441.8,2441.5,0.94662728]
[1724808338280,4.09488,2442.1,2441.5,0.94662728]
[1724808338585,0.06377822,2441.7,2441.6,2.3606]
[1724808338787,8.18923,2442.3,2441.6,2.3606]
[1724808339102,4.09476,2442.2,2441.6,2.3606]
[1724808339300,4.09483,2442.1,2441.5,0.94662728]
[1724808339771,4.09461,2442.3,2441.5,0.94662728]
[1724808340309,0.06377822,2442.2,2441.6,2.3606]
[1724808340605,0.06377822,2442.2,2441.7,1.01137232]
[1724808340779,4.09441,2442.4,2441.8,0.08189353]
[1724808340983,0.06377822,2442.1,2441.8,0.08189353]
[1724808341197,0.06377822,2442.0,2441.9,2.3606]
[1724808341424,0.42823101,2442.5,2441.9,2.3606]
[1724808341621,0.42823101,2442.5,2442.0,0.08188547]
[1724808341796,0.06377822,2442.4,2442.0,0.08188547]
[1724808344308,0.42823101,2442.5,2441.9,2.7708]
[1724808344519,0.42823101,2442.5,2442.0,1.01398091]
[1724808344703,0.06474609,2442.4,2442.0,1.01398091]
[1724808344904,0.06474609,2442.4,2442.1,0.08188278]
[1724808346109,0.06474609,2442.4,2442.2,2.433]
[1724808346309,0.06474609,2442.4,2442.3,0.08186939]
[1724808346534,4.09373,2442.8,2442.3,0.37437633]
[1724808346736,4.09396,2442.7,2442.2,2.433]
[1724808346943,4.094,2442.6,2442.2,2.433]
[1724808347446,0.06526208,2442.5,2442.2,2.433]
[1724808347650,4.09383,2442.7,2442.3,0.28432]
[1724808347817,0.06526208,2442.6,2442.3,0.28432]
[1724808348137,0.06526208,2442.6,2442.1,0.4102]
[1724808348363,4.0942,2442.5,2442.1,0.4102]
[1724808348554,4.0942,2442.5,2442.0,0.49207659]
[1724808348739,0.06526208,2442.4,2442.0,0.49207659]
[1724808348941,0.06526208,2442.4,2442.1,0.58497766]
[1724808349140,4.09413,2442.6,2442.1,0.58497766]
[1724808349323,0.06526208,2442.3,2442.1,3.58497766]
[1724808349534,4.09413,2442.6,2442.1,3.66686339]
[1724808349836,4.09375,2442.8,2442.2,0.82550537]
[1724808350040,6.41159,2442.9,2442.3,0.08187902]
[1724808350238,6.41159,2442.9,2442.3,0.53111522]
[1724808350616,4.09368,2442.8,2442.3,0.53111522]
[1724808350948,2.318,2442.9,2442.3,0.53111522]
[1724808350949,4.0935,2442.9,2442.3,0.53111522]
[1724808351148,4.0935,2442.9,2442.4,0.55346201]
[1724808351335,8.18675,2443.0,2442.4,0.63533753]
[1724808351544,6.55569,2443.1,2442.4,3.03123753]
[1724808351741,4.09357,2442.9,2442.5,0.34804737]
[1724808351942,4.09357,2442.9,2442.4,0.08187552]
[1724808352837,4.09275,2443.4,2442.6,2.3959]
[1724808352838,2.3166,2443.4,2442.6,2.3959]
[1724808353045,4.0926,2443.5,2442.8,4.17799949]
[1724808353243,4.0926,2443.5,2442.9,0.08186171]
[1724808353538,6.40883,2443.7,2443.0,4.17799949]
[1724808353741,4.09223,2443.7,2443.1,2.90374129]
[1724808353941,4.09192,2443.9,2443.1,2.90374129]
[1724808354138,4.09213,2443.8,2443.1,2.90374129]
[1724808354339,4.09216,2443.7,2443.1,2.90374129]
[1724808355451,0.06526208,2443.6,2443.2,0.70817408]
[1724808356058,0.06526208,2443.6,2442.8,4.58819949]